[Event "Titled Tuesday Blitz March 01 Late 2022"]
[White "Seo, Jung Min"]
[Black "Ibadov, Dashgyn"]
[WhiteFideId "1734687"]
[BlackFideId "24107514"]
[WhiteElo "2401"]
[BlackElo "2084"]
[Result "1-0"]
[Round "06"]
[TimeControl "180+1"]
[Date "2022.03.02"]
[WhiteClock "0:01:14"]
[BlackClock "0:00:21"]

1. d4 {[%clk 0:03:00]}  d5 {[%clk 0:02:59]} 2. c4 {[%clk 0:03:00]}  e6 {[%clk 0:02:58]} 3. Nf3 {[%clk 0:03:00]}  c6 {[%clk 0:02:58]} 4. Bg5 {[%clk 0:03:00]}  Be7 {[%clk 0:02:58]} 5. Bxe7 {[%clk 0:03:00]}  Qxe7 {[%clk 0:02:58]} 6. e3 {[%clk 0:02:58]}  Nf6 {[%clk 0:02:58]} 7. Nc3 {[%clk 0:02:56]}  b6 {[%clk 0:02:58]} 8. Qc2 {[%clk 0:02:55]}  Bb7 {[%clk 0:02:59]} 9. cxd5 {[%clk 0:02:52]}  exd5 {[%clk 0:02:54]} 10. Bd3 {[%clk 0:02:48]}  Nbd7 {[%clk 0:02:52]} 11. O-O {[%clk 0:02:48]}  O-O {[%clk 0:02:51]} 12. Rfe1 {[%clk 0:02:41]}  c5 {[%clk 0:02:44]} 13. Rac1 {[%clk 0:02:33]}  Rac8 {[%clk 0:02:40]} 14. Qb1 {[%clk 0:02:29]}  Rfe8 {[%clk 0:02:29]} 15. b3 {[%clk 0:02:26]}  h6 {[%clk 0:02:28]} 16. Bf5 {[%clk 0:02:24]}  g6 {[%clk 0:02:25]} 17. Bh3 {[%clk 0:02:23]}  Kg7 {[%clk 0:02:24]} 18. Ne5 {[%clk 0:02:21]}  Rcd8 {[%clk 0:02:09]} 19. f4 {[%clk 0:02:15]}  Nxe5 {[%clk 0:01:59]} 20. fxe5 {[%clk 0:02:10]}  Ne4 {[%clk 0:02:00]} 21. Nxe4 {[%clk 0:02:10]}  dxe4 {[%clk 0:02:00]} 22. Qb2 {[%clk 0:02:09]}  cxd4 {[%clk 0:01:51]} 23. exd4 {[%clk 0:02:08]}  Bd5 {[%clk 0:01:51]} 24. g3 {[%clk 0:02:05]}  f6 {[%clk 0:01:42]} 25. Bg2 {[%clk 0:01:53]}  fxe5 {[%clk 0:01:38]} 26. Bxe4 {[%clk 0:01:49]}  Bxe4 {[%clk 0:01:38]} 27. Rxe4 {[%clk 0:01:49]}  Rxd4 {[%clk 0:01:35]} 28. Rxd4 {[%clk 0:01:48]}  exd4 {[%clk 0:01:34]} 29. Qxd4+ {[%clk 0:01:48]}  Kh7 {[%clk 0:01:31]} 30. Rf1 {[%clk 0:01:42]}  Rf8 {[%clk 0:01:14]} 31. Rxf8 {[%clk 0:01:38]}  Qxf8 {[%clk 0:01:15]} 32. Kg2 {[%clk 0:01:32]}  Qe7 {[%clk 0:01:15]} 33. Kf3 {[%clk 0:01:30]}  g5 {[%clk 0:01:04]} 34. Qe4+ {[%clk 0:01:25]}  Qxe4+ {[%clk 0:01:01]} 35. Kxe4 {[%clk 0:01:26]}  Kg6 {[%clk 0:01:02]} 36. Ke5 {[%clk 0:01:26]}  Kf7 {[%clk 0:00:36]} 37. Kf5 {[%clk 0:01:22]}  Kg7 {[%clk 0:00:36]} 38. Ke6 {[%clk 0:01:19]}  h5 {[%clk 0:00:21]} 39. Kf5 {[%clk 0:01:17]}  Kh6 {[%clk 0:00:21]} 40. h3 {[%clk 0:01:14]} 1-0


[Site "https://www.chess.com"]

[Event "Titled Tuesday Blitz March 01 Late 2022"]
[White "Tanenbaum, Zachary"]
[Black "Cupid, Kevin"]
[WhiteFideId "2060850"]
[BlackFideId "7700512"]
[WhiteElo "2168"]
[BlackElo "2096"]
[Result "1-0"]
[Round "06"]
[TimeControl "180+1"]
[Date "2022.03.02"]
[WhiteClock "0:00:13"]
[BlackClock "0:00:04"]

1. e4 {[%clk 0:03:00]}  c6 {[%clk 0:02:59]} 2. d4 {[%clk 0:03:01]}  d5 {[%clk 0:02:59]} 3. exd5 {[%clk 0:03:01]}  cxd5 {[%clk 0:03:00]} 4. Bd3 {[%clk 0:03:02]}  Nf6 {[%clk 0:03:01]} 5. c3 {[%clk 0:03:02]}  Nc6 {[%clk 0:03:01]} 6. Bf4 {[%clk 0:03:03]}  Bg4 {[%clk 0:03:02]} 7. Qb3 {[%clk 0:03:03]}  Qc8 {[%clk 0:03:01]} 8. Nd2 {[%clk 0:03:04]}  e6 {[%clk 0:03:01]} 9. Ngf3 {[%clk 0:03:04]}  Be7 {[%clk 0:02:59]} 10. O-O {[%clk 0:03:05]}  O-O {[%clk 0:02:59]} 11. Qc2 {[%clk 0:03:04]}  Bh5 {[%clk 0:02:57]} 12. Ne5 {[%clk 0:03:04]}  Bg6 {[%clk 0:02:56]} 13. Nxg6 {[%clk 0:03:04]}  hxg6 {[%clk 0:02:56]} 14. Nf3 {[%clk 0:03:05]}  Nh5 {[%clk 0:02:45]} 15. Be3 {[%clk 0:03:03]}  Bd6 {[%clk 0:02:44]} 16. Qd2 {[%clk 0:03:03]}  Qc7 {[%clk 0:02:43]} 17. g3 {[%clk 0:03:02]}  a6 {[%clk 0:02:33]} 18. a4 {[%clk 0:03:02]}  Na5 {[%clk 0:02:32]} 19. Qe2 {[%clk 0:02:49]}  Nc4 {[%clk 0:02:25]} 20. Ng5 {[%clk 0:02:40]}  e5 {[%clk 0:02:01]} 21. dxe5 {[%clk 0:01:55]}  Bxe5 {[%clk 0:02:02]} 22. Nf3 {[%clk 0:01:24]}  Bf6 {[%clk 0:01:26]} 23. Bxc4 {[%clk 0:01:19]}  dxc4 {[%clk 0:01:25]} 24. Nd2 {[%clk 0:01:05]}  Rac8 {[%clk 0:01:19]} 25. Ne4 {[%clk 0:00:57]}  Be5 {[%clk 0:01:07]} 26. Rad1 {[%clk 0:00:55]}  Rfe8 {[%clk 0:01:03]} 27. Qf3 {[%clk 0:00:50]}  Nf6 {[%clk 0:01:01]} 28. Ng5 {[%clk 0:00:48]}  b5 {[%clk 0:00:55]} 29. axb5 {[%clk 0:00:47]}  axb5 {[%clk 0:00:56]} 30. Ra1 {[%clk 0:00:47]}  b4 {[%clk 0:00:56]} 31. Ra7 {[%clk 0:00:47]}  Qc6 {[%clk 0:00:53]} 32. Qxc6 {[%clk 0:00:46]}  Rxc6 {[%clk 0:00:54]} 33. Nxf7 {[%clk 0:00:42]}  bxc3 {[%clk 0:00:35]} 34. Nxe5 {[%clk 0:00:40]}  Rxe5 {[%clk 0:00:36]} 35. bxc3 {[%clk 0:00:40]}  Ng4 {[%clk 0:00:32]} 36. Bd4 {[%clk 0:00:38]}  Rh5 {[%clk 0:00:24]} 37. Rxg7+ {[%clk 0:00:36]}  Kf8 {[%clk 0:00:25]} 38. Ra1 {[%clk 0:00:31]}  Ne5 {[%clk 0:00:14]} 39. Bxe5 {[%clk 0:00:22]}  Rxe5 {[%clk 0:00:15]} 40. Raa7 {[%clk 0:00:22]}  Rf6 {[%clk 0:00:13]} 41. Rgc7 {[%clk 0:00:21]}  Re1+ {[%clk 0:00:06]} 42. Kg2 {[%clk 0:00:21]}  Re8 {[%clk 0:00:04]} 43. Rxc4 {[%clk 0:00:21]}  Kg8 {[%clk 0:00:04]} 44. Rac7 {[%clk 0:00:19]}  Ref8 {[%clk 0:00:02]} 45. f4 {[%clk 0:00:17]}  Re6 {[%clk 0:00:02]} 46. Rc8 {[%clk 0:00:18]}  Kf7 {[%clk 0:00:02]} 47. R4c7+ {[%clk 0:00:18]}  Kg8 {[%clk 0:00:01]} 48. Rxf8+ {[%clk 0:00:18]}  Kxf8 {[%clk 0:00:02]} 49. Kf3 {[%clk 0:00:18]}  Rd6 {[%clk 0:00:03]} 50. c4 {[%clk 0:00:17]}  Rd2 {[%clk 0:00:03]} 51. h4 {[%clk 0:00:17]}  Rc2 {[%clk 0:00:03]} 52. c5 {[%clk 0:00:17]}  Rc3+ {[%clk 0:00:03]} 53. Kg4 {[%clk 0:00:17]}  Rc4 {[%clk 0:00:03]} 54. Kg5 {[%clk 0:00:17]}  Rc3 {[%clk 0:00:04]} 55. g4 {[%clk 0:00:17]}  Rc4 {[%clk 0:00:03]} 56. c6 {[%clk 0:00:17]}  Ke8 {[%clk 0:00:01]} 57. h5 {[%clk 0:00:13]}  gxh5 {[%clk 0:00:01]} 58. gxh5 {[%clk 0:00:14]}  Kd8 {[%clk 0:00:01]} 59. Rd7+ {[%clk 0:00:14]}  Ke8 {[%clk 0:00:01]} 60. Rd6 {[%clk 0:00:14]}  Rc5+ {[%clk 0:00:01]} 61. f5 {[%clk 0:00:14]}  Rc4 {[%clk 0:00:02]} 62. h6 {[%clk 0:00:14]}  Rc1 {[%clk 0:00:03]} 63. h7 {[%clk 0:00:13]}  Rh1 {[%clk 0:00:04]} 64. Rh6 {[%clk 0:00:13]}  Rg1+ {[%clk 0:00:03]} 65. Kf4 {[%clk 0:00:13]}  Rf1+ {[%clk 0:00:03]} 66. Ke4 {[%clk 0:00:13]}  Re1+ {[%clk 0:00:04]} 67. Kf3 {[%clk 0:00:14]}  Re7 {[%clk 0:00:04]} 68. h8=Q+ {[%clk 0:00:13]} 1-0


[Site "https://www.chess.com"]

[Event "Titled Tuesday Blitz March 01 Late 2022"]
[White "Vine, Elzbieta"]
[Black "Ardila, Oscar Humberto"]
[WhiteFideId "1119320"]
[BlackFideId "4404742"]
[WhiteElo "1857"]
[BlackElo "1898"]
[Result "0-1"]
[Round "06"]
[TimeControl "180+1"]
[Date "2022.03.02"]
[WhiteClock "0:00:42"]
[BlackClock "0:02:16"]

1. e4 {[%clk 0:03:00]}  e5 {[%clk 0:02:58]} 2. Nf3 {[%clk 0:02:58]}  Nc6 {[%clk 0:02:59]} 3. Bb5 {[%clk 0:02:58]}  Nf6 {[%clk 0:02:59]} 4. O-O {[%clk 0:02:57]}  Nxe4 {[%clk 0:02:57]} 5. Re1 {[%clk 0:02:56]}  Nd6 {[%clk 0:02:57]} 6. Bxc6 {[%clk 0:02:53]}  bxc6 {[%clk 0:02:57]} 7. Rxe5+ {[%clk 0:02:51]}  Be7 {[%clk 0:02:57]} 8. Qe2 {[%clk 0:02:46]}  f6 {[%clk 0:02:50]} 9. Re3 {[%clk 0:02:38]}  Nf5 {[%clk 0:02:49]} 10. Re4 {[%clk 0:02:33]}  d5 {[%clk 0:02:48]} 11. Rg4 {[%clk 0:02:27]}  O-O {[%clk 0:02:37]} 12. d4 {[%clk 0:02:18]}  Nd6 {[%clk 0:02:37]} 13. Rg3 {[%clk 0:01:49]}  Ne4 {[%clk 0:02:37]} 14. Rxg7+ {[%clk 0:01:03]}  Kxg7 {[%clk 0:02:36]} 15. Nh4 {[%clk 0:01:02]}  f5 {[%clk 0:02:29]} 16. Qh5 {[%clk 0:01:00]}  Bg5 {[%clk 0:02:16]} 17. Bxg5 {[%clk 0:00:42]}  Qxg5 {[%clk 0:02:16]} 0-1


[Site "https://www.chess.com"]

[Event "Titled Tuesday Blitz March 01 Late 2022"]
[White "Weetik, Vjacheslav"]
[Black "Tomiello, Mateus Costamilan"]
[WhiteFideId "4153472"]
[BlackFideId "22701958"]
[WhiteElo "2469"]
[BlackElo "1975"]
[Result "1-0"]
[Round "06"]
[TimeControl "180+1"]
[Date "2022.03.02"]
[WhiteClock "0:00:10"]
[BlackClock "0:00:05"]

1. d4 {[%clk 0:02:54]}  Nf6 {[%clk 0:02:58]} 2. Bf4 {[%clk 0:02:51]}  d5 {[%clk 0:02:58]} 3. e3 {[%clk 0:02:46]}  c5 {[%clk 0:02:57]} 4. c3 {[%clk 0:02:46]}  Nc6 {[%clk 0:02:57]} 5. Nd2 {[%clk 0:02:46]}  Bg4 {[%clk 0:02:55]} 6. Qb3 {[%clk 0:02:45]}  Qc8 {[%clk 0:02:43]} 7. dxc5 {[%clk 0:02:41]}  e5 {[%clk 0:02:33]} 8. Bg5 {[%clk 0:02:41]}  Be6 {[%clk 0:02:32]} 9. Bb5 {[%clk 0:02:25]}  Bxc5 {[%clk 0:02:28]} 10. Ngf3 {[%clk 0:02:22]}  Nd7 {[%clk 0:02:26]} 11. O-O {[%clk 0:02:10]}  O-O {[%clk 0:02:24]} 12. Qd1 {[%clk 0:02:03]}  a6 {[%clk 0:02:19]} 13. Be2 {[%clk 0:02:02]}  f6 {[%clk 0:02:17]} 14. Bh4 {[%clk 0:02:02]}  Rd8 {[%clk 0:02:11]} 15. Re1 {[%clk 0:02:02]}  Be7 {[%clk 0:02:04]} 16. Qc2 {[%clk 0:02:02]}  Nc5 {[%clk 0:02:03]} 17. Rad1 {[%clk 0:02:01]}  Bf5 {[%clk 0:02:03]} 18. Qc1 {[%clk 0:01:59]}  Bd3 {[%clk 0:02:01]} 19. Nb3 {[%clk 0:01:58]}  Bxe2 {[%clk 0:02:00]} 20. Rxe2 {[%clk 0:01:58]}  e4 {[%clk 0:01:54]} 21. Nfd4 {[%clk 0:01:53]}  Nd3 {[%clk 0:01:52]} 22. Qb1 {[%clk 0:01:45]}  Nce5 {[%clk 0:01:48]} 23. Bg3 {[%clk 0:01:43]}  a5 {[%clk 0:01:47]} 24. Nc1 {[%clk 0:01:34]}  Nxc1 {[%clk 0:01:36]} 25. Qxc1 {[%clk 0:01:33]}  Nd3 {[%clk 0:01:37]} 26. Qb1 {[%clk 0:01:33]}  Bc5 {[%clk 0:01:32]} 27. Rxd3 {[%clk 0:01:27]}  exd3 {[%clk 0:01:31]} 28. Qxd3 {[%clk 0:01:28]}  Qg4 {[%clk 0:01:22]} 29. h3 {[%clk 0:01:23]}  Qe4 {[%clk 0:01:21]} 30. Qd1 {[%clk 0:01:23]}  Re8 {[%clk 0:01:17]} 31. Nf3 {[%clk 0:01:17]}  a4 {[%clk 0:01:14]} 32. a3 {[%clk 0:01:17]}  b5 {[%clk 0:01:10]} 33. Rd2 {[%clk 0:01:17]}  Rad8 {[%clk 0:01:07]} 34. Qe2 {[%clk 0:01:14]}  Qc4 {[%clk 0:01:06]} 35. Qd1 {[%clk 0:01:12]}  h5 {[%clk 0:01:00]} 36. Nd4 {[%clk 0:01:09]}  Bxd4 {[%clk 0:00:55]} 37. Rxd4 {[%clk 0:01:09]}  Qc6 {[%clk 0:00:53]} 38. Qxh5 {[%clk 0:01:09]}  Re4 {[%clk 0:00:48]} 39. Rd2 {[%clk 0:00:59]}  Qc4 {[%clk 0:00:44]} 40. Kh2 {[%clk 0:00:53]}  Rd7 {[%clk 0:00:32]} 41. Qg6 {[%clk 0:00:51]}  Qc6 {[%clk 0:00:28]} 42. Qf5 {[%clk 0:00:47]}  Qe6 {[%clk 0:00:28]} 43. Qf3 {[%clk 0:00:47]}  g5 {[%clk 0:00:25]} 44. Qe2 {[%clk 0:00:44]}  g4 {[%clk 0:00:24]} 45. h4 {[%clk 0:00:40]}  f5 {[%clk 0:00:23]} 46. Qxb5 {[%clk 0:00:38]}  Rc4 {[%clk 0:00:17]} 47. Qb8+ {[%clk 0:00:35]}  Kh7 {[%clk 0:00:16]} 48. Be5 {[%clk 0:00:32]}  Qg8 {[%clk 0:00:12]} 49. Qb5 {[%clk 0:00:24]}  Qd8 {[%clk 0:00:11]} 50. Bg3 {[%clk 0:00:22]}  Re4 {[%clk 0:00:11]} 51. Qc6 {[%clk 0:00:19]}  Ree7 {[%clk 0:00:06]} 52. Qf6 {[%clk 0:00:19]}  Rf7 {[%clk 0:00:04]} 53. Qe6 {[%clk 0:00:18]}  Rfe7 {[%clk 0:00:03]} 54. Qxf5+ {[%clk 0:00:18]}  Kh8 {[%clk 0:00:03]} 55. Be5+ {[%clk 0:00:14]}  Rxe5 {[%clk 0:00:04]} 56. Qxe5+ {[%clk 0:00:15]}  Rg7 {[%clk 0:00:04]} 57. Qh5+ {[%clk 0:00:14]}  Rh7 {[%clk 0:00:04]} 58. Qe5+ {[%clk 0:00:13]}  Rg7 {[%clk 0:00:04]} 59. g3 {[%clk 0:00:12]}  Qf8 {[%clk 0:00:03]} 60. Kg1 {[%clk 0:00:10]}  Qf3 {[%clk 0:00:03]} 61. Qh5+ {[%clk 0:00:09]}  Kg8 {[%clk 0:00:02]} 62. Qxd5+ {[%clk 0:00:09]}  Qxd5 {[%clk 0:00:02]} 63. Rxd5 {[%clk 0:00:10]}  Rb7 {[%clk 0:00:02]} 64. Rd2 {[%clk 0:00:10]}  Kf7 {[%clk 0:00:03]} 65. Kf1 {[%clk 0:00:09]}  Kf6 {[%clk 0:00:03]} 66. Ke2 {[%clk 0:00:10]}  Ke5 {[%clk 0:00:03]} 67. h5 {[%clk 0:00:08]}  Rh7 {[%clk 0:00:03]} 68. Rd4 {[%clk 0:00:07]}  Rb7 {[%clk 0:00:03]} 69. Rb4 {[%clk 0:00:08]}  Rh7 {[%clk 0:00:03]} 70. Rxa4 {[%clk 0:00:08]}  Kd5 {[%clk 0:00:03]} 71. Rxg4 {[%clk 0:00:08]}  Rxh5 {[%clk 0:00:03]} 72. Rd4+ {[%clk 0:00:08]}  Kc5 {[%clk 0:00:03]} 73. g4 {[%clk 0:00:08]}  Rh2 {[%clk 0:00:04]} 74. a4 {[%clk 0:00:08]}  Rg2 {[%clk 0:00:04]} 75. b4+ {[%clk 0:00:08]}  Kc6 {[%clk 0:00:04]} 76. c4 {[%clk 0:00:09]}  Rg1 {[%clk 0:00:04]} 77. a5 {[%clk 0:00:09]}  Rb1 {[%clk 0:00:05]} 78. b5+ {[%clk 0:00:09]}  Kc5 {[%clk 0:00:05]} 79. Kf3 {[%clk 0:00:09]}  Ra1 {[%clk 0:00:05]} 80. a6 {[%clk 0:00:09]}  Ra4 {[%clk 0:00:05]} 81. g5 {[%clk 0:00:10]}  Ra3 {[%clk 0:00:05]} 82. g6 {[%clk 0:00:10]}  Ra1 {[%clk 0:00:06]} 83. g7 {[%clk 0:00:10]}  Rg1 {[%clk 0:00:06]} 84. Rg4 {[%clk 0:00:10]}  Rg3+ {[%clk 0:00:05]} 1-0


[Site "https://www.chess.com"]

[Event "Titled Tuesday Blitz March 01 Late 2022"]
[White "Winkels, Marcel"]
[Black "Sarkar, Justin"]
[WhiteFideId "1003887"]
[BlackFideId "2010011"]
[WhiteElo "1900"]
[BlackElo "2038"]
[Result "0-1"]
[Round "06"]
[TimeControl "180+1"]
[Date "2022.03.02"]
[WhiteClock "0:00:05"]
[BlackClock "0:00:08"]

1. b3 {[%clk 0:03:00]}  b6 {[%clk 0:02:41]} 2. Bb2 {[%clk 0:02:59]}  Bb7 {[%clk 0:02:41]} 3. Nf3 {[%clk 0:02:59]}  f5 {[%clk 0:02:27]} 4. g3 {[%clk 0:02:57]}  Bxf3 {[%clk 0:02:13]} 5. exf3 {[%clk 0:02:56]}  e6 {[%clk 0:02:13]} 6. Bg2 {[%clk 0:02:54]}  Nf6 {[%clk 0:02:09]} 7. O-O {[%clk 0:02:51]}  Be7 {[%clk 0:02:04]} 8. d4 {[%clk 0:02:50]}  O-O {[%clk 0:02:01]} 9. c4 {[%clk 0:02:50]}  f4 {[%clk 0:01:51]} 10. Nc3 {[%clk 0:02:47]}  Nc6 {[%clk 0:01:22]} 11. Qd2 {[%clk 0:02:46]}  Nh5 {[%clk 0:01:14]} 12. d5 {[%clk 0:02:39]}  Ne5 {[%clk 0:01:03]} 13. dxe6 {[%clk 0:02:18]}  dxe6 {[%clk 0:00:58]} 14. Qxd8 {[%clk 0:02:16]}  Raxd8 {[%clk 0:00:54]} 15. Ne4 {[%clk 0:02:17]}  Nd3 {[%clk 0:00:50]} 16. Bc3 {[%clk 0:02:16]}  Bb4 {[%clk 0:00:38]} 17. Bxb4 {[%clk 0:01:55]}  Nxb4 {[%clk 0:00:38]} 18. Rfd1 {[%clk 0:01:48]}  h6 {[%clk 0:00:32]} 19. Bh3 {[%clk 0:01:41]}  Kf7 {[%clk 0:00:27]} 20. Rd2 {[%clk 0:01:29]}  Rxd2 {[%clk 0:00:20]} 21. Nxd2 {[%clk 0:01:28]}  Rd8 {[%clk 0:00:20]} 22. Ne4 {[%clk 0:01:27]}  Nc2 {[%clk 0:00:20]} 23. Rc1 {[%clk 0:01:22]}  Nd4 {[%clk 0:00:19]} 24. Kg2 {[%clk 0:01:16]}  c5 {[%clk 0:00:19]} 25. Bg4 {[%clk 0:01:09]}  Nf6 {[%clk 0:00:18]} 26. gxf4 {[%clk 0:00:59]}  Ne2 {[%clk 0:00:13]} 27. Rc2 {[%clk 0:00:53]}  Nxf4+ {[%clk 0:00:12]} 28. Kg3 {[%clk 0:00:51]}  g5 {[%clk 0:00:11]} 29. Rd2 {[%clk 0:00:44]}  Nxe4+ {[%clk 0:00:11]} 30. fxe4 {[%clk 0:00:30]}  Rxd2 {[%clk 0:00:11]} 31. a4 {[%clk 0:00:24]}  h5 {[%clk 0:00:11]} 32. Bf3 {[%clk 0:00:23]}  Rd3 {[%clk 0:00:11]} 33. h3 {[%clk 0:00:21]}  Kf6 {[%clk 0:00:10]} 34. b4 {[%clk 0:00:20]}  cxb4 {[%clk 0:00:10]} 35. a5 {[%clk 0:00:20]}  Ke5 {[%clk 0:00:09]} 36. axb6 {[%clk 0:00:12]}  axb6 {[%clk 0:00:09]} 37. c5 {[%clk 0:00:11]}  bxc5 {[%clk 0:00:09]} 38. h4 {[%clk 0:00:10]}  g4 {[%clk 0:00:09]} 39. Kh2 {[%clk 0:00:09]}  Rxf3 {[%clk 0:00:08]} 40. Kg1 {[%clk 0:00:08]}  Kxe4 {[%clk 0:00:08]} 41. Kf1 {[%clk 0:00:08]}  g3 {[%clk 0:00:08]} 42. Ke1 {[%clk 0:00:06]}  Rxf2 {[%clk 0:00:08]} 43. Kd1 {[%clk 0:00:05]}  g2 {[%clk 0:00:08]} 0-1


[Site "https://www.chess.com"]

[Event "Titled Tuesday Blitz March 01 Late 2022"]
[White "Yurtseven, Melih"]
[Black "Medeiros Jr, Francisco De Assis"]
[WhiteFideId "6312160"]
[BlackFideId "2114267"]
[WhiteElo "2160"]
[BlackElo "1998"]
[Result "1-0"]
[Round "06"]
[TimeControl "180+1"]
[Date "2022.03.02"]
[WhiteClock "0:00:47"]
[BlackClock "0:00:03"]

1. e4 {[%clk 0:03:00]}  c6 {[%clk 0:02:59]} 2. Nf3 {[%clk 0:02:55]}  d5 {[%clk 0:03:00]} 3. d3 {[%clk 0:02:56]}  g6 {[%clk 0:02:34]} 4. Be2 {[%clk 0:02:55]}  dxe4 {[%clk 0:02:22]} 5. dxe4 {[%clk 0:02:56]}  Qxd1+ {[%clk 0:02:23]} 6. Bxd1 {[%clk 0:02:56]}  Nf6 {[%clk 0:02:23]} 7. Nbd2 {[%clk 0:02:55]}  Bg7 {[%clk 0:02:19]} 8. O-O {[%clk 0:02:54]}  O-O {[%clk 0:02:18]} 9. Re1 {[%clk 0:02:54]}  c5 {[%clk 0:02:15]} 10. e5 {[%clk 0:02:47]}  Nd5 {[%clk 0:02:13]} 11. Ne4 {[%clk 0:02:48]}  b6 {[%clk 0:02:11]} 12. a3 {[%clk 0:02:46]}  h6 {[%clk 0:01:58]} 13. c4 {[%clk 0:02:44]}  Nc7 {[%clk 0:01:55]} 14. b4 {[%clk 0:02:45]}  cxb4 {[%clk 0:01:51]} 15. axb4 {[%clk 0:02:46]}  Bb7 {[%clk 0:01:51]} 16. Bb2 {[%clk 0:02:45]}  Rd8 {[%clk 0:01:47]} 17. Bc2 {[%clk 0:02:44]}  Nc6 {[%clk 0:01:45]} 18. Bc3 {[%clk 0:02:43]}  a6 {[%clk 0:01:43]} 19. h4 {[%clk 0:02:40]}  Rac8 {[%clk 0:01:40]} 20. h5 {[%clk 0:02:40]}  g5 {[%clk 0:01:38]} 21. Ng3 {[%clk 0:02:40]}  b5 {[%clk 0:01:35]} 22. Nf5 {[%clk 0:02:36]}  bxc4 {[%clk 0:01:31]} 23. Nxg7 {[%clk 0:02:35]}  Kxg7 {[%clk 0:01:29]} 24. e6+ {[%clk 0:02:31]}  f6 {[%clk 0:01:28]} 25. Be4 {[%clk 0:02:32]}  Nb5 {[%clk 0:01:24]} 26. Bd2 {[%clk 0:02:28]}  c3 {[%clk 0:01:19]} 27. Be3 {[%clk 0:02:28]}  f5 {[%clk 0:00:57]} 28. Bxf5 {[%clk 0:02:25]}  Nxb4 {[%clk 0:00:56]} 29. Ne5 {[%clk 0:02:25]}  Nd5 {[%clk 0:00:48]} 30. Bc1 {[%clk 0:02:19]}  Nd4 {[%clk 0:00:46]} 31. Be4 {[%clk 0:02:16]}  Nxe6 {[%clk 0:00:35]} 32. Bf5 {[%clk 0:02:15]}  Nd4 {[%clk 0:00:20]} 33. Bxc8 {[%clk 0:02:10]}  Rxc8 {[%clk 0:00:21]} 34. Rd1 {[%clk 0:02:09]}  Nb3 {[%clk 0:00:18]} 35. Ra3 {[%clk 0:02:01]}  c2 {[%clk 0:00:19]} 36. Re1 {[%clk 0:01:59]}  Nd4 {[%clk 0:00:17]} 37. Rd3 {[%clk 0:01:51]}  Ne6 {[%clk 0:00:14]} 38. Ng6 {[%clk 0:01:47]}  Nc5 {[%clk 0:00:14]} 39. Rf3 {[%clk 0:01:34]}  e6 {[%clk 0:00:14]} 40. Bb2+ {[%clk 0:01:27]}  Kg8 {[%clk 0:00:13]} 41. Kh2 {[%clk 0:01:19]}  Nf4 {[%clk 0:00:13]} 42. Ne7+ {[%clk 0:01:16]}  Kf7 {[%clk 0:00:12]} 43. Nxc8 {[%clk 0:01:17]}  Bxf3 {[%clk 0:00:10]} 44. Nd6+ {[%clk 0:01:15]}  Ke7 {[%clk 0:00:10]} 45. Ba3 {[%clk 0:01:11]}  Kxd6 {[%clk 0:00:10]} 46. gxf3 {[%clk 0:01:09]}  Nd3 {[%clk 0:00:10]} 47. Ra1 {[%clk 0:01:08]}  Kd5 {[%clk 0:00:09]} 48. f4 {[%clk 0:00:54]}  gxf4 {[%clk 0:00:08]} 49. Rg1 {[%clk 0:00:47]}  Nb3 {[%clk 0:00:03]} 50. Rg6 {[%clk 0:00:47]} 1-0


[Site "https://www.chess.com"]

[Event "Titled Tuesday Blitz March 01 Late 2022"]
[White "Zarubitski, Viachaslau"]
[Black "Martinez Alcantara, Jose Eduardo"]
[WhiteFideId "13509373"]
[BlackFideId "3805662"]
[WhiteElo "2325"]
[BlackElo "2690"]
[Result "0-1"]
[Round "06"]
[TimeControl "180+1"]
[Date "2022.03.01"]
[WhiteClock "0:00:01"]
[BlackClock "0:00:15"]

1. e4 {[%clk 0:02:58]}  c5 {[%clk 0:03:00]} 2. Nf3 {[%clk 0:02:58]}  d6 {[%clk 0:03:01]} 3. d4 {[%clk 0:02:58]}  cxd4 {[%clk 0:03:02]} 4. Nxd4 {[%clk 0:02:59]}  Nf6 {[%clk 0:03:02]} 5. Nc3 {[%clk 0:02:59]}  Nc6 {[%clk 0:03:03]} 6. Bg5 {[%clk 0:02:59]}  e6 {[%clk 0:03:03]} 7. Qd2 {[%clk 0:02:56]}  a6 {[%clk 0:03:03]} 8. Nxc6 {[%clk 0:02:55]}  bxc6 {[%clk 0:03:04]} 9. O-O-O {[%clk 0:02:56]}  Be7 {[%clk 0:03:04]} 10. Bc4 {[%clk 0:02:49]}  Rb8 {[%clk 0:02:48]} 11. Bxf6 {[%clk 0:02:46]}  gxf6 {[%clk 0:02:48]} 12. Bb3 {[%clk 0:02:45]}  h5 {[%clk 0:02:46]} 13. Kb1 {[%clk 0:02:43]}  a5 {[%clk 0:02:47]} 14. f4 {[%clk 0:02:42]}  Qb6 {[%clk 0:02:46]} 15. Rhe1 {[%clk 0:02:31]}  Qc5 {[%clk 0:02:41]} 16. g3 {[%clk 0:02:16]}  Kf8 {[%clk 0:02:32]} 17. h3 {[%clk 0:02:10]}  Rb4 {[%clk 0:02:21]} 18. a3 {[%clk 0:02:07]}  Rb8 {[%clk 0:02:21]} 19. g4 {[%clk 0:02:07]}  Ba6 {[%clk 0:01:57]} 20. Na4 {[%clk 0:01:57]}  Qb5 {[%clk 0:01:48]} 21. f5 {[%clk 0:01:49]}  Qe5 {[%clk 0:01:24]} 22. gxh5 {[%clk 0:01:35]}  Rxh5 {[%clk 0:01:04]} 23. Rg1 {[%clk 0:01:34]}  Rh8 {[%clk 0:00:40]} 24. Qg2 {[%clk 0:01:16]}  Ke8 {[%clk 0:00:41]} 25. Qg7 {[%clk 0:00:45]}  Rf8 {[%clk 0:00:41]} 26. Qh7 {[%clk 0:00:25]}  exf5 {[%clk 0:00:36]} 27. exf5 {[%clk 0:00:20]}  d5 {[%clk 0:00:36]} 28. Rge1 {[%clk 0:00:19]}  Qd6 {[%clk 0:00:36]} 29. Nc3 {[%clk 0:00:15]}  Rb7 {[%clk 0:00:30]} 30. Ne4 {[%clk 0:00:14]}  Qe5 {[%clk 0:00:18]} 31. Nc5 {[%clk 0:00:13]}  Qc7 {[%clk 0:00:18]} 32. Nxb7 {[%clk 0:00:10]}  Bxb7 {[%clk 0:00:14]} 33. c4 {[%clk 0:00:08]}  Qb6 {[%clk 0:00:13]} 34. Ba2 {[%clk 0:00:05]}  d4 {[%clk 0:00:12]} 35. Qh4 {[%clk 0:00:05]}  c5 {[%clk 0:00:11]} 36. Qg3 {[%clk 0:00:01]}  Bc8 {[%clk 0:00:12]} 37. Re2 {[%clk 0:00:01]}  Bxf5+ {[%clk 0:00:11]} 38. Ka1 {[%clk 0:00:02]}  Be6 {[%clk 0:00:12]} 39. Rde1 {[%clk 0:00:02]}  Kd7 {[%clk 0:00:12]} 40. h4 {[%clk 0:00:03]}  Rb8 {[%clk 0:00:13]} 41. h5 {[%clk 0:00:03]}  Bd6 {[%clk 0:00:13]} 42. Qh4 {[%clk 0:00:03]}  d3 {[%clk 0:00:13]} 43. Rd2 {[%clk 0:00:03]}  Be5 {[%clk 0:00:14]} 44. Rxd3+ {[%clk 0:00:03]}  Ke8 {[%clk 0:00:13]} 45. Rb3 {[%clk 0:00:02]}  Qc7 {[%clk 0:00:13]} 46. Rxb8+ {[%clk 0:00:01]}  Qxb8 {[%clk 0:00:14]} 47. Re2 {[%clk 0:00:01]}  Qd6 {[%clk 0:00:14]} 48. Qe1 {[%clk 0:00:01]}  Bg4 {[%clk 0:00:14]} 49. Rd2 {[%clk 0:00:02]}  Qe6 {[%clk 0:00:13]} 50. h6 {[%clk 0:00:02]}  Bxb2+ {[%clk 0:00:14]} 51. Kxb2 {[%clk 0:00:01]}  Qxe1 {[%clk 0:00:15]} 0-1


[Site "https://www.chess.com"]